fUSD/lending_fUSD_20240101
["ID","MTS","AMOUNT","RATE_DAILY","PERIOD"]
[309758910,1704090631853,-282.33262533,0.00029697,2]
[309758911,1704090631865,-1888.02767333,0.00029697,2]
[309758912,1704090631875,-374.75365542,0.00029698,2]
[309758930,1704090637837,-194.34378672,0.00029698,2]
[309758931,1704090637846,-150.99,0.00029952,2]
[309758932,1704090637859,-204.0,0.00029952,2]
[309758933,1704090637868,-152.0,0.00031466,5]
[309758934,1704090637877,-195.85,0.00032441,2]
[309758935,1704090637886,-433.49426754,0.000329,2]
[309758936,1704090637895,-204.0,0.00033708,9]
[309758937,1704090637905,-152.0,0.0003391,6]
[309758938,1704090637914,-155.0,0.00034,2]
[309758939,1704090637924,-1000.0,0.00034,4]
[309758940,1704090637934,-164.59,0.00034325,2]
[309758941,1704090637945,-800.0,0.00034382,2]
[309758942,1704090637954,-152.21,0.0003444,2]
[309758943,1704090637963,-200.0,0.00034446,2]
[309758944,1704090637973,-1600.74,0.00034449,2]
[309758945,1704090637983,-591.38,0.00034459,2]
[309758946,1704090637993,-250.0,0.00034506,111]
[309758947,1704090638002,-150.69,0.00034532,2]
[309758948,1704090638012,-167.01,0.00034537,2]
[309758949,1704090638026,-159.73,0.00034585,2]
[309758950,1704090638036,-195.85,0.00034705,2]
[309758951,1704090638046,-167.01,0.00034836,2]
[309758952,1704090638057,-1935.81090039,0.00034957,4]
[309758953,1704090638067,-368.36268643,0.00034999,4]
[309758954,1704090638076,-12384.0,0.00035,4]
[309758955,1704090638085,-40391.0,0.00035,2]
[309758956,1704090638095,-30496.67767151,0.00035,120]
[309758957,1704090638105,-167.01,0.00035135,2]
[309758958,1704090638114,-347.22222,0.00035221,2]
[309758959,1704090638124,-159.95473757,0.0003537,2]
[309758960,1704090638133,-152.21,0.00035418,2]
[309758961,1704090638143,-167.01,0.00035435,2]
[309758962,1704090638152,-50.82409582,0.00035486,2]
[309758963,1704090638166,-108.90590418,0.00035486,2]
[309758964,1704090638175,-201.75949262,0.000355,3]
[309758965,1704090638189,-3488.21204759,0.000355,3]
[309758966,1704090638203,-16584.33120031,0.000355,3]
[309758967,1704090638220,-393.94838891,0.000355,3]
[309758968,1704090638233,-33237.74887057,0.000355,3]
[309758969,1704090638243,-2270.2888163,0.00035516,2]
[309758970,1704090638253,-150.0,0.00035616,2]
[309758971,1704090638262,-2270.28881622,0.00035666,2]
[309758972,1704090638275,-222.22222,0.00035698,2]
[309758973,1704090638285,-167.01,0.00035734,2]
[309758974,1704090638295,-222.22222,0.00035798,2]
[309758975,1704090638304,-2270.28881622,0.00035817,2]
[309758976,1704090638314,-222.22222,0.00035898,2]
[309758977,1704090638323,-2270.28881622,0.00035967,2]
[309758978,1704090638546,-222.22222,0.00035998,2]
[309758979,1704090638558,-202.00966706,0.00036003,2]
[309758980,1704090638569,-167.01,0.00036033,2]
[309758981,1704090638578,-1457.03948619,0.00036089,2]
[309758982,1704090638587,-222.22222,0.00036098,2]
[309758983,1704090638597,-2270.28881622,0.00036117,2]
[309758984,1704090638607,-222.22222,0.00036198,2]
[309758985,1704090638618,-1094.75421433,0.000362,2]
[309758986,1704090638630,-164.18,0.00036253,2]
[309758987,1704090638642,-2270.28881622,0.00036268,2]
[309758988,1704090638652,-222.22222,0.00036298,4]
[309758989,1704090638662,-167.0,0.00036302,2]
[309758990,1704090638671,-167.01,0.00036333,2]
[309758991,1704090638680,-152.0,0.00036353,7]
[309758992,1704090638689,-155.71,0.00036355,2]
[309758993,1704090638698,-159.73,0.00036387,2]
[309758994,1704090638706,-152.21,0.00036396,2]
[309758995,1704090638716,-222.22222,0.00036398,2]
[309758996,1704090638725,-1881.2357,0.00036409,2]
[309758997,1704090638735,-2270.28881622,0.00036418,2]
[309758998,1704090638744,-363.37339701,0.00036429,4]
[309758999,1704090638754,-200.0,0.00036491,7]
[309759000,1704090638763,-222.22222,0.00036498,4]
[309759001,1704090638773,-150.0,0.00036554,2]
[309759002,1704090638782,-1457.03948619,0.00036559,2]
[309759003,1704090638791,-2270.28881622,0.00036569,2]
[309759004,1704090638800,-222.22222,0.00036598,2]
[309759005,1704090638810,-222.22222,0.00036698,4]
[309759006,1704090638819,-2627.17155993,0.0003671,4]
[309759007,1704090638828,-2270.28881622,0.00036719,2]
[309759008,1704090638841,-286.33096707,0.00036769,8]
[309759009,1704090638860,-154.0,0.00036789,2]
[309759010,1704090638871,-222.22222,0.00036798,2]
[309759011,1704090638881,-500.0,0.00036798,2]
[309759012,1704090638891,-500.0,0.00036798,2]
[309759013,1704090638901,-500.0,0.00036798,2]
[309759014,1704090638911,-500.0,0.00036798,2]
[309759015,1704090638921,-500.0,0.00036798,2]
[309759016,1704090638931,-500.0,0.00036798,2]
[309759017,1704090638943,-758.72,0.00036798,2]
[309759018,1704090638953,-211.70773257,0.00036798,2]
[309759019,1704090638963,-500.0,0.00036798,2]
[309759020,1704090638973,-500.0,0.00036798,2]
[309759021,1704090638983,-500.0,0.00036798,2]
[309759022,1704090638993,-262.49048519,0.00036798,2]
[309759023,1704090639003,-500.0,0.00036798,2]
[309759024,1704090639012,-500.0,0.00036798,2]
[309759025,1704090639022,-500.0,0.00036798,2]
[309759026,1704090639032,-500.0,0.00036798,2]
[309759027,1704090639042,-5431.54,0.00036798,5]
[309759028,1704090639052,-500.0,0.00036798,2]
[309759029,1704090639062,-863.27,0.00036798,2]
[309759030,1704090639071,-500.0,0.00036798,2]
[309759031,1704090639081,-500.0,0.00036798,2]
[309759032,1704090639091,-500.0,0.00036798,2]
[309759033,1704090639101,-500.0,0.00036798,2]
[309759034,1704090639111,-500.0,0.00036798,2]
[309759035,1704090639121,-1157.08,0.00036798,2]
[309759036,1704090639131,-500.0,0.00036798,2]
[309759037,1704090639141,-500.0,0.00036798,2]
[309759038,1704090639150,-205.04540848,0.00036798,2]
[309759039,1704090639160,-500.0,0.00036798,2]
[309759040,1704090639170,-7987.71,0.00036798,5]
[309759041,1704090639179,-500.0,0.00036798,2]
[309759042,1704090639189,-525.32718496,0.00036798,2]
[309759043,1704090639199,-570.15,0.00036798,2]
[309759044,1704090639209,-304.43690326,0.00036798,2]
[309759045,1704090639218,-500.0,0.00036798,2]
[309759046,1704090639228,-500.0,0.00036798,2]
[309759047,1704090639237,-500.0,0.00036798,2]
[309759048,1704090639247,-500.0,0.00036798,2]
[309759049,1704090639257,-500.0,0.00036798,2]
[309759050,1704090639266,-500.0,0.00036798,2]
[309759051,1704090639276,-500.0,0.00036798,24]
[309759052,1704090639285,-4650.03,0.00036798,2]
[309759053,1704090639294,-500.0,0.00036798,2]
[309759054,1704090639304,-500.0,0.00036798,2]
[309759055,1704090639313,-500.0,0.00036798,2]
[309759056,1704090639323,-395.79967923,0.00036798,2]
[309759057,1704090639333,-500.0,0.00036798,2]
[309759058,1704090639342,-500.0,0.00036798,2]
[309759059,1704090639352,-500.0,0.00036798,2]
[309759060,1704090639361,-500.0,0.00036798,2]
[309759061,1704090639371,-500.0,0.00036798,2]
[309759062,1704090639380,-500.0,0.00036799,2]
[309759063,1704090639390,-500.0,0.00036799,2]
[309759064,1704090639399,-676.82,0.00036799,2]
[309759065,1704090639409,-500.0,0.00036799,2]
[309759066,1704090639418,-500.0,0.00036799,2]
[309759067,1704090639427,-500.0,0.00036799,2]
[309759068,1704090639437,-500.0,0.00036799,2]
[309759069,1704090639446,-500.0,0.00036799,2]
[309759070,1704090639456,-500.0,0.00036799,2]
[309759071,1704090639465,-500.0,0.00036799,2]
[309759072,1704090639475,-500.0,0.00036799,2]
[309759073,1704090639484,-500.0,0.00036799,2]
[309759074,1704090639493,-500.0,0.00036799,2]
[309759075,1704090639503,-500.0,0.00036799,2]
[309759076,1704090639513,-500.0,0.00036799,2]
[309759077,1704090639522,-500.0,0.00036799,2]
[309759078,1704090639532,-500.0,0.00036799,2]
[309759079,1704090639542,-458.89,0.00036799,2]
[309759080,1704090639551,-500.0,0.00036799,2]
[309759081,1704090639560,-500.0,0.00036799,2]
[309759082,1704090639569,-500.0,0.00036799,2]
[309759083,1704090639578,-500.0,0.00036799,2]
[309759084,1704090639588,-500.0,0.00036799,2]
[309759085,1704090639597,-500.0,0.00036799,2]
[309759086,1704090639607,-500.0,0.00036799,2]
[309759087,1704090639616,-500.0,0.00036799,2]
[309759088,1704090639626,-500.0,0.00036799,2]
[309759089,1704090639635,-500.0,0.00036799,2]
[309759090,1704090639645,-500.0,0.00036799,2]
[309759091,1704090639654,-500.0,0.00036799,2]
[309759092,1704090639665,-551.55114216,0.00036799,2]
[309759093,1704090639675,-500.0,0.00036799,2]
[309759094,1704090639684,-500.0,0.00036799,2]
[309759095,1704090639695,-500.0,0.00036799,2]
[309759096,1704090639705,-500.0,0.00036799,2]
[309759097,1704090639715,-500.0,0.00036799,2]
[309759098,1704090639727,-500.0,0.00036799,2]
[309759099,1704090639737,-500.0,0.00036799,2]
[309759100,1704090639746,-500.0,0.00036799,2]
[309759101,1704090639756,-500.0,0.00036799,2]
[309759102,1704090639767,-500.0,0.00036799,2]
[309759103,1704090639776,-500.0,0.00036799,2]
[309759104,1704090639786,-500.0,0.00036799,2]
[309759105,1704090639796,-650.31,0.00036799,2]
[309759106,1704090639806,-61714.83656364,0.000368,5]
[309759107,1704090639815,-2270.28881622,0.00036869,2]
[309759108,1704090639827,-222.22222,0.00036898,4]
[309759109,1704090639837,-5474.89845273,0.00036952,10]
[309759110,1704090639846,-150.0,0.00036961,2]
[309759111,1704090639855,-500.0,0.00036961,2]
[309759112,1704090639864,-500.0,0.00036961,2]
[309759113,1704090639874,-500.0,0.00036961,2]
[309759114,1704090639883,-500.0,0.00036961,2]
[309759115,1704090639892,-500.0,0.00036961,2]
[309759116,1704090639902,-500.0,0.00036961,2]
[309759117,1704090639911,-500.0,0.00036961,2]
[309759118,1704090639920,-500.0,0.00036961,2]
[309759119,1704090639930,-500.0,0.00036961,2]
[309759120,1704090639939,-500.0,0.00036961,2]
[309759121,1704090639948,-500.0,0.00036961,2]
[309759122,1704090639957,-500.0,0.00036961,2]
[309759123,1704090639967,-500.0,0.00036961,2]
[309759125,1704090639977,-500.0,0.00036961,2]
[309759127,1704090639986,-500.0,0.00036961,2]
[309759129,1704090639995,-500.0,0.00036961,2]
[309759131,1704090640005,-500.0,0.00036961,2]
[309759133,1704090640014,-500.0,0.00036961,2]
[309759135,1704090640023,-500.0,0.00036961,2]
[309759136,1704090640032,-500.0,0.00036961,2]
[309759137,1704090640042,-500.0,0.00036961,2]
[309759138,1704090640051,-500.0,0.00036961,2]
[309759139,1704090640060,-500.0,0.00036961,2]
[309759140,1704090640070,-500.0,0.00036961,2]
[309759141,1704090640079,-500.0,0.00036961,2]
[309759142,1704090640088,-500.0,0.00036961,2]
[309759143,1704090640097,-500.0,0.00036961,2]
[309759144,1704090640106,-500.0,0.00036961,2]
[309759145,1704090640115,-500.0,0.00036961,2]
[309759146,1704090640125,-500.0,0.00036961,2]
[309759147,1704090640134,-500.0,0.00036961,2]
[309759148,1704090640143,-500.0,0.00036961,2]
[309759149,1704090640153,-500.0,0.00036961,2]
[309759150,1704090640162,-500.0,0.00036961,2]
[309759151,1704090640175,-500.0,0.00036961,2]
[309759152,1704090640184,-500.0,0.00036961,2]
[309759153,1704090640198,-500.0,0.00036961,2]
[309759154,1704090640207,-500.0,0.00036961,2]
[309759155,1704090640217,-500.0,0.00036961,2]
[309759156,1704090640226,-500.0,0.00036961,2]
[309759157,1704090640236,-500.0,0.00036961,2]
[309759158,1704090640245,-500.0,0.00036961,2]
[309759159,1704090640254,-500.0,0.00036961,2]
[309759160,1704090640263,-500.0,0.00036961,2]
[309759161,1704090640274,-500.0,0.00036961,2]
[309759162,1704090640283,-500.0,0.00036961,2]
[309759163,1704090640292,-500.0,0.00036961,2]
[309759164,1704090640301,-500.0,0.00036961,2]
[309759165,1704090640310,-500.0,0.00036961,2]
[309759166,1704090640319,-5474.89845273,0.00036962,10]
[309759167,1704090640328,-10949.7969055,0.00036962,10]
[309759168,1704090640337,-5474.89845273,0.00036966,10]
[309759169,1704090640346,-195.85,0.00036969,2]
[309759170,1704090640356,-2652.6456,0.00036972,2]
[309759171,1704090640365,-1000.0,0.00036986,3]
[309759172,1704090640374,-1000.0,0.00036986,3]
[309759173,1704090640386,-1056.0,0.00036986,3]
[309759174,1704090640396,-1000.0,0.00036986,3]
[309759175,1704090640405,-445.0,0.00036986,3]
[309759176,1704090640414,-1000.0,0.00036986,3]
[309759177,1704090640423,-829.0,0.00036986,3]
[309759178,1704090640433,-150.0,0.00036995,2]
[309759179,1704090640442,-222.22222,0.00036998,2]
[309759180,1704090640452,-951.62832981,0.00037,7]
[309759181,1704090640462,-1026.626516,0.00037,2]
[309759182,1704090640471,-2270.28881622,0.0003702,2]
[309759183,1704090640480,-1000.0,0.00037027,2]
[309759184,1704090640489,-5474.89845273,0.00037031,10]
[309759185,1704090640500,-10949.7969055,0.00037053,10]
[309759186,1704090640509,-10949.7969055,0.00037062,10]
[309759187,1704090640519,-16424.6953582,0.00037063,10]
[309759188,1704090640528,-200.0,0.00037072,2]
[309759189,1704090640539,-200.0,0.00037072,10]
[309759190,1704090640556,-500.0,0.00037072,2]
[309759191,1704090640570,-500.0,0.00037072,2]
[309759192,1704090640583,-500.0,0.00037072,2]
[309759193,1704090640595,-412.75326749,0.00037072,2]
[309759194,1704090640610,-500.0,0.00037072,2]
[309759195,1704090640625,-500.0,0.00037072,2]
[309759196,1704090640637,-758.72,0.00037072,2]
[309759197,1704090640648,-500.0,0.00037072,2]
[309759198,1704090640660,-500.0,0.00037072,2]
[309759199,1704090640671,-500.0,0.00037072,2]
[309759200,1704090640684,-500.0,0.00037072,2]
[309759201,1704090640695,-500.0,0.00037072,2]
[309759202,1704090640706,-500.0,0.00037072,2]
[309759203,1704090640718,-500.0,0.00037072,2]
[309759204,1704090640730,-5431.54,0.00037072,5]
[309759205,1704090640744,-500.0,0.00037072,2]
[309759206,1704090640758,-863.27,0.00037072,2]
[309759207,1704090640770,-500.0,0.00037072,2]
[309759208,1704090640782,-500.0,0.00037072,2]
[309759209,1704090640795,-500.0,0.00037072,2]
[309759210,1704090640807,-500.0,0.00037072,2]
[309759211,1704090640819,-500.0,0.00037072,2]
[309759212,1704090640830,-1157.08,0.00037072,2]
[309759213,1704090640841,-500.0,0.00037072,2]
[309759214,1704090640853,-500.0,0.00037072,2]
[309759215,1704090640866,-500.0,0.00037072,2]
[309759216,1704090640878,-7987.71,0.00037072,5]
[309759217,1704090640889,-365.57381977,0.00037072,2]
[309759218,1704090640901,-570.15,0.00037072,2]
[309759219,1704090640912,-500.0,0.00037072,2]
[309759220,1704090640923,-500.0,0.00037072,2]
[309759221,1704090640934,-500.0,0.00037072,2]
[309759222,1704090640946,-500.0,0.00037072,2]
[309759223,1704090640956,-500.0,0.00037072,2]
[309759224,1704090640967,-500.0,0.00037072,2]
[309759225,1704090640978,-500.0,0.00037072,24]
[309759226,1704090640990,-4650.03,0.00037072,2]
[309759227,1704090641003,-500.0,0.00037072,2]
[309759228,1704090641013,-500.0,0.00037072,2]
[309759229,1704090641023,-500.0,0.00037072,2]
[309759230,1704090641032,-309.5511707,0.00037072,2]
[309759231,1704090641044,-500.0,0.00037072,2]
[309759232,1704090641056,-500.0,0.00037072,2]
[309759233,1704090641067,-500.0,0.00037072,2]
[309759234,1704090641077,-500.0,0.00037072,2]
[309759235,1704090641087,-500.0,0.00037073,2]
[309759236,1704090641100,-500.0,0.00037073,2]
[309759237,1704090641111,-676.82,0.00037073,2]
[309759238,1704090641122,-500.0,0.00037073,2]
[309759239,1704090641133,-500.0,0.00037073,2]
[309759240,1704090641144,-500.0,0.00037073,2]
[309759241,1704090641156,-500.0,0.00037073,2]
[309759242,1704090641168,-500.0,0.00037073,2]
[309759243,1704090641179,-500.0,0.00037073,2]
[309759244,1704090641191,-590.92789793,0.00037073,2]
[309759245,1704090641203,-500.0,0.00037073,2]
[309759246,1704090641214,-500.0,0.00037073,2]
[309759247,1704090641225,-500.0,0.00037073,2]
[309759248,1704090641237,-500.0,0.00037073,2]
[309759249,1704090641248,-500.0,0.00037073,2]
[309759250,1704090641259,-500.0,0.00037073,2]
[309759251,1704090641270,-500.0,0.00037073,2]
[309759252,1704090641281,-500.0,0.00037073,2]
[309759253,1704090641293,-500.0,0.00037073,2]
[309759254,1704090641303,-500.0,0.00037073,2]
[309759255,1704090641313,-500.0,0.00037073,2]
[309759256,1704090641323,-500.0,0.00037073,2]
[309759257,1704090641332,-500.0,0.00037073,2]
[309759258,1704090641342,-500.0,0.00037073,2]
[309759259,1704090641352,-500.0,0.00037073,2]
[309759260,1704090641363,-500.0,0.00037073,2]
[309759261,1704090641373,-500.0,0.00037073,2]
[309759262,1704090641387,-500.0,0.00037073,2]
[309759263,1704090641400,-500.0,0.00037073,2]
[309759264,1704090641410,-500.0,0.00037073,2]
[309759265,1704090641422,-500.0,0.00037073,2]
[309759266,1704090641433,-500.0,0.00037073,2]
[309759267,1704090641445,-500.0,0.00037073,2]
[309759268,1704090641456,-500.0,0.00037073,2]
[309759269,1704090641467,-500.0,0.00037073,2]
[309759270,1704090641477,-500.0,0.00037073,2]
[309759271,1704090641489,-548.3,0.00037073,2]
[309759272,1704090641499,-500.0,0.00037073,2]
[309759273,1704090641509,-500.0,0.00037073,2]
[309759274,1704090641518,-500.0,0.00037073,2]
[309759275,1704090641529,-500.0,0.00037073,2]
[309759276,1704090641539,-650.31,0.00037073,2]
[309759277,1704090641549,-222.22222,0.00037098,4]
[309759278,1704090641560,-2270.28881622,0.0003717,2]
[309759279,1704090641570,-222.22222,0.00037198,4]
[309759280,1704090641581,-5199.04284738,0.00037225,10]
[309759281,1704090641779,-304.17128567,0.00036769,2]
[309759282,1704090641790,-476.81885522,0.00036961,2]
[309759283,1704090641803,-23.18114478,0.00036961,2]
[309759284,1704090641813,-478.51902652,0.00036961,2]
[309759285,1704090641828,-21.48097348,0.00036961,2]
[309759286,1704090641838,-333.83902652,0.00036961,2]
[309759287,1704090641851,-166.16097348,0.00036961,2]
[309759288,1704090641861,-142.14034352,0.00036961,2]
[309759289,1704090641875,-357.85965648,0.00036961,2]
[309759290,1704090641886,-500.0,0.00036961,2]
[309759291,1704090641896,-500.0,0.00036961,2]
[309759292,1704090641908,-275.85560535,0.00037225,10]
[309759293,1704090641920,-222.22222,0.00037298,4]
[309759294,1704090641931,-2270.28881622,0.0003732,2]
[309759295,1704090641941,-1196.1877266,0.00037325,10]
[309759296,1704090641995,-343.63380356,0.00037325,10]
[309759299,1704090642543,-2011.20793913,0.00037325,10]
[309759300,1704090642620,-28.9998451,0.00037325,10]
[309759301,1704090642635,-388.39049616,0.00037325,10]
[309759302,1704090642813,-371.32182864,0.00037325,10]
[309759303,1704090642866,-430.8869,0.00037325,10]
[309759304,1704090642880,-704.26991354,0.00037325,10]
[309759305,1704090642890,-789.09577592,0.00037327,10]
[309759306,1704090642904,-2938.15059209,0.00037327,10]
[309759307,1704090642917,-6931.56222212,0.00037327,10]
[309759308,1704090642930,-290.98831537,0.00037327,10]
[309759309,1704090642941,-444.0,0.00037335,5]
[309759310,1704090642954,-4479.46098897,0.00037336,10]
[309759311,1704090642968,-2430.28132187,0.00037336,10]
[309759312,1704090643000,-1590.32321476,0.00037336,10]
[309759323,1704090645667,-490.87576478,0.00036768,4]
[309759324,1704090645679,-537.02,0.00036798,2]
[309759325,1704090645689,-537.02,0.00037072,2]
[309759326,1704090645700,-370.89513561,0.00037336,10]
[309759327,1704090645713,-2078.83624429,0.00037336,10]
[309759328,1704090645722,-4999.58805053,0.00037337,10]
[309759329,1704090645735,-1196.72102697,0.00037337,10]
[309759330,1704090645747,-432.27653367,0.00037337,10]
[309759331,1704090645883,-300.0,0.00037337,10]
[309759360,1704091831765,-1026.48245457,0.0003346,2]
[309759361,1704091831775,-232.34084643,0.00033461,4]
[309759362,1704091831784,-16.89445959,0.00033464,2]
[309759363,1704091831823,-187.10554041,0.00033464,2]
[309759364,1704091831833,-1000.0,0.00034399,4]
[309759365,1704091831843,-166.47,0.000344,2]
[309759366,1704091831853,-996.42445959,0.00035383,4]
[309759367,1704091831869,-710.95107462,0.00035383,4]
[309759368,1704091831886,-503.6495043,0.00035383,4]
[309759369,1704091831931,-474.72799163,0.00035383,4]
[309759370,1704091832036,-612.37351679,0.00035383,4]
[309759371,1704091832048,-2812.44804443,0.00035383,4]
[309759376,1704091838149,-776.69892242,0.00035383,4]
[309759377,1704091838304,-28443.18936459,0.00035383,4]
[309759378,1704091838314,-160.63661408,0.00035923,2]
[309759379,1704091838323,-150.0,0.00036069,2]
[309759380,1704091838333,-151.77777,0.00036098,2]
[309759381,1704091838342,-151.77777,0.00036198,2]
[309759382,1704091838351,-152.21,0.00036215,2]
[309759383,1704091838361,-1000.0,0.00036216,2]
[309759384,1704091838370,-1333.95,0.00036222,2]
[309759385,1704091838379,-250.0,0.0003628,111]
[309759386,1704091838389,-151.77777,0.00036298,4]
[309759387,1704091838398,-151.77777,0.00036398,2]
[309759388,1704091838408,-151.77777,0.00036498,2]
[309759389,1704091838417,-151.77777,0.00036598,4]
[309759390,1704091838426,-499.99,0.00036624,2]
[309759391,1704091838435,-166.47,0.00036664,2]
[309759392,1704091838444,-151.77777,0.00036698,2]
[309759393,1704091838453,-500.0,0.00036798,2]
[309759394,1704091838462,-500.0,0.00036798,2]
[309759395,1704091838471,-500.0,0.00036798,2]
[309759396,1704091838480,-500.0,0.00036798,2]
[309759397,1704091838489,-598.77919056,0.00036798,2]
[309759398,1704091838498,-500.0,0.00036798,2]
[309759399,1704091838507,-596.12,0.00036798,2]
[309759400,1704091838517,-151.77777,0.00036798,4]
[309759401,1704091838526,-151.77777,0.00036898,2]
[309759402,1704091838534,-5000.0,0.0003698,4]
[309759403,1704091838543,-151.77777,0.00036998,2]
[309759404,1704091838553,-951.62832981,0.00037,7]
[309759405,1704091838562,-300.0,0.00037,38]
[309759406,1704091838571,-826.62122727,0.00037027,2]
[309759407,1704091838580,-150.0,0.00037032,2]
[309759408,1704091838589,-200.0,0.00037055,7]
[309759409,1704091838599,-305.98691063,0.00037072,2]
[309759410,1704091838610,-500.0,0.00037072,2]
[309759411,1704091838620,-500.0,0.00037072,2]
[309759412,1704091838630,-500.0,0.00037072,2]
[309759413,1704091838641,-500.0,0.00037072,2]
[309759414,1704091838650,-596.12,0.00037072,2]
[309759415,1704091838660,-286.19708506,0.00037092,2]
[309759416,1704091838670,-151.77777,0.00037098,4]
[309759417,1704091838679,-151.77777,0.00037198,4]
[309759418,1704091838689,-151.77777,0.00037298,4]
[309759419,1704091838698,-821.3012128,0.000373,2]
[309759420,1704091838709,-200.0,0.00037309,2]
[309759421,1704091838718,-289.35185,0.0003732,2]
[309759422,1704091838729,-2101.52653987,0.00037336,4]
[309759423,1704091838739,-5000.0,0.00037337,10]
[309759424,1704091838747,-5000.0,0.00037337,10]
[309759425,1704091838758,-500.0,0.00037346,2]
[309759426,1704091838768,-500.0,0.00037346,2]
[309759427,1704091838778,-500.0,0.00037346,2]
[309759428,1704091838788,-500.0,0.00037346,2]
[309759429,1704091838797,-596.12,0.00037346,2]
[309759430,1704091838808,-1000.0,0.00037361,10]
[309759431,1704091838817,-1000.0,0.00037361,10]
[309759432,1704091838827,-1000.0,0.00037373,10]
[309759433,1704091838838,-1000.0,0.00037373,10]
[309759434,1704091838848,-500.0,0.00037373,2]
[309759435,1704091838859,-500.0,0.00037373,2]
[309759436,1704091838870,-500.0,0.00037373,2]
[309759437,1704091838880,-500.0,0.00037373,2]
[309759438,1704091838889,-500.0,0.00037373,2]
[309759439,1704091838899,-500.0,0.00037373,2]
[309759440,1704091838908,-500.0,0.00037373,2]
[309759441,1704091838917,-390.45717304,0.00037373,2]
[309759442,1704091838926,-500.0,0.00037373,2]
[309759443,1704091838937,-500.0,0.00037373,2]
[309759444,1704091838946,-500.0,0.00037373,2]
[309759445,1704091838955,-500.0,0.00037373,2]
[309759446,1704091838964,-500.0,0.00037373,2]
[309759447,1704091838973,-606.54389802,0.00037373,2]
[309759448,1704091838983,-500.0,0.00037373,2]
[309759449,1704091838992,-500.0,0.00037373,2]
[309759450,1704091839001,-500.0,0.00037373,2]
[309759451,1704091839011,-500.0,0.00037373,2]
[309759452,1704091839020,-500.0,0.00037373,2]
[309759453,1704091839030,-500.0,0.00037373,2]
[309759454,1704091839039,-500.0,0.00037373,2]
[309759455,1704091839049,-392.32888687,0.00037373,2]
[309759456,1704091839058,-382.13763164,0.00037373,2]
[309759457,1704091839067,-500.0,0.00037373,2]
[309759458,1704091839077,-500.0,0.00037373,2]
[309759459,1704091839086,-500.0,0.00037373,2]
[309759460,1704091839096,-500.0,0.00037373,2]
[309759461,1704091839105,-500.0,0.00037373,2]
[309759462,1704091839116,-500.0,0.00037373,2]
[309759463,1704091839126,-500.0,0.00037373,2]
[309759464,1704091839135,-1000.0,0.00037374,10]
[309759465,1704091839144,-1000.0,0.00037374,10]
[309759466,1704091839155,-1000.0,0.00037374,10]
[309759467,1704091839166,-1000.0,0.00037374,10]
[309759468,1704091839176,-1000.0,0.00037374,10]
[309759469,1704091839186,-1000.0,0.00037374,10]
[309759470,1704091839195,-1000.0,0.00037374,10]
[309759471,1704091839204,-1000.0,0.00037374,10]
[309759472,1704091839214,-1000.0,0.00037374,10]
[309759473,1704091839225,-1000.0,0.00037374,10]
[309759474,1704091839235,-936.53880934,0.00037374,9]
[309759475,1704091839244,-1000.0,0.00037374,10]
[309759476,1704091839255,-222.61780384,0.00037374,2]